fUST/lending_fUST_20240919
["ID","MTS","AMOUNT","RATE_DAILY","PERIOD"]
[338601777,1726761048659,-3683.629319,0.0001693,2]
[338601778,1726761048669,-151.0,0.0001693,2]
[338601779,1726761048679,-3683.629319,0.0001693,2]
[338601780,1726761048689,-151.0,0.0001693,2]
[338601781,1726761048698,-3683.629319,0.0001693,2]
[338601782,1726761048708,-3683.629319,0.0001693,2]
[338601783,1726761048718,-3683.629319,0.0001693,2]
[338601784,1726761048727,-3683.629319,0.0001693,2]
[338601785,1726761048737,-3683.629319,0.0001693,2]
[338601786,1726761048747,-3683.629319,0.0001693,2]
[338601787,1726761048756,-3683.629319,0.0001693,2]
[338601788,1726761048766,-3683.629319,0.0001693,2]
[338601789,1726761048775,-1390.994884,0.0001693,2]
[338601790,1726761048785,-3683.629319,0.0001693,2]
[338601791,1726761048795,-1390.994884,0.0001693,2]
[338601792,1726761048804,-1390.994884,0.0001693,2]
[338601793,1726761048814,-1390.994884,0.0001693,2]
[338601794,1726761048823,-1390.994884,0.0001693,2]
[338601795,1726761048833,-1390.994884,0.0001693,2]
[338601796,1726761048843,-151.0,0.0001693,2]
[338601797,1726761048852,-151.0,0.0001693,2]
[338601798,1726761048862,-151.0,0.0001693,2]
[338601799,1726761048873,-151.0,0.0001693,2]
[338601800,1726761048883,-151.0,0.0001693,2]
[338601801,1726761048892,-151.0,0.0001693,2]
[338601802,1726761048902,-151.0,0.0001693,2]
[338601803,1726761048912,-151.0,0.0001693,2]
[338601804,1726761048923,-151.0,0.0001693,2]
[338601805,1726761048933,-181.553746,0.0001693,2]
[338601806,1726761048942,-3276.098791,0.0001693,2]
[338601807,1726761048952,-3276.098791,0.0001693,2]
[338601808,1726761048961,-3276.098791,0.0001693,2]
[338601809,1726761048971,-3276.098791,0.0001693,2]
[338601810,1726761048981,-3276.098791,0.0001693,2]
[338601811,1726761048990,-3276.098791,0.0001693,2]
[338601812,1726761049000,-3276.098791,0.0001693,2]
[338601813,1726761049010,-3276.098791,0.0001693,2]
[338601814,1726761049020,-3276.098791,0.0001693,2]
[338601815,1726761049029,-3276.098791,0.0001693,2]
[338601816,1726761049039,-3945.164897,0.0001693,2]
[338601817,1726761049051,-3945.164897,0.0001693,2]
[338601818,1726761049061,-3945.164897,0.0001693,2]
[338601819,1726761049074,-3945.164897,0.0001693,2]
[338601820,1726761049085,-3945.164897,0.0001693,2]
[338601821,1726761049095,-154.616325,0.0001693,2]
[338601822,1726761049105,-3945.164895,0.0001693,2]
[338601823,1726761049114,-154.616325,0.0001693,2]
[338601824,1726761049124,-154.616325,0.0001693,2]
[338601825,1726761049134,-2096.934486,0.0001693,2]
[338601826,1726761049145,-2096.934478,0.0001693,2]
[338601827,1726761049155,-154.616325,0.0001693,2]
[338601828,1726761049165,-154.616325,0.0001693,2]
[338601829,1726761049174,-154.616321,0.0001693,2]
[338601830,1726761049184,-1219.093052,0.0001693,2]
[338601831,1726761049193,-1219.093052,0.0001693,2]
[338601832,1726761049203,-1219.093052,0.0001693,2]
[338601833,1726761049212,-1219.093052,0.0001693,2]
[338601834,1726761049222,-1219.093052,0.0001693,2]
[338601835,1726761049231,-1219.093052,0.0001693,2]
[338601836,1726761049241,-1219.093052,0.0001693,2]
[338601837,1726761049251,-1219.093052,0.0001693,2]
[338601838,1726761049261,-1219.093052,0.0001693,2]
[338601839,1726761049271,-1278.755942,0.0001693,2]
[338601840,1726761049281,-1219.093052,0.0001693,2]
[338601841,1726761049291,-1278.755942,0.0001693,2]
[338601842,1726761049301,-1219.093052,0.0001693,2]
[338601843,1726761049311,-1278.755942,0.0001693,2]
[338601844,1726761049321,-401.806058,0.0001693,2]
[338601845,1726761049331,-1219.093058,0.0001693,2]
[338601846,1726761049341,-401.806058,0.0001693,2]
[338601847,1726761049351,-401.806058,0.0001693,2]
[338601848,1726761049362,-1278.755942,0.0001693,2]
[338601849,1726761049372,-401.806058,0.0001693,2]
[338601850,1726761049382,-1278.755942,0.0001693,2]
[338601851,1726761049392,-401.806058,0.0001693,2]
[338601852,1726761049402,-1278.75594,0.0001693,2]
[338601853,1726761049413,-401.806057,0.0001693,2]
[338601854,1726761049423,-520.722722,0.0001693,2]
[338601855,1726761049432,-520.722722,0.0001693,2]
[338601856,1726761049442,-520.722722,0.0001693,2]
[338601857,1726761049453,-520.722722,0.0001693,2]
[338601858,1726761049463,-151.0,0.0001693,2]
[338601859,1726761049473,-520.722722,0.0001693,2]
[338601860,1726761049483,-520.72273,0.0001693,2]
[338601861,1726761049493,-224.989425,0.0001693,2]
[338601862,1726761049503,-224.989425,0.0001693,2]
[338601863,1726761049512,-224.989425,0.0001693,2]
[338601864,1726761049523,-224.989425,0.0001693,2]
[338601865,1726761049533,-224.989425,0.0001693,2]
[338601866,1726761049543,-224.989425,0.0001693,2]
[338601867,1726761049552,-224.989425,0.0001693,2]
[338601868,1726761049563,-224.989425,0.0001693,2]
[338601869,1726761049573,-224.989425,0.0001693,2]
[338601870,1726761049583,-224.989425,0.0001693,2]
[338601871,1726761049593,-224.989425,0.0001693,2]
[338601872,1726761049603,-224.989432,0.0001693,2]
[338601873,1726761049612,-6632.299996,0.0001693,2]
[338601874,1726761049623,-6632.299996,0.0001693,2]
[338601875,1726761049633,-6632.299996,0.0001693,2]
[338601876,1726761049644,-6632.299996,0.0001693,2]
[338601877,1726761049653,-6632.299996,0.0001693,2]
[338601878,1726761049663,-6632.300001,0.0001693,2]
[338601879,1726761049672,-151.0,0.0001693,2]
[338601880,1726761049682,-151.0,0.0001693,2]
[338601881,1726761049691,-151.0,0.0001693,2]
[338601882,1726761049701,-151.0,0.0001693,2]
[338601883,1726761049711,-151.0,0.0001693,2]
[338601884,1726761049721,-151.0,0.0001693,2]
[338601885,1726761049731,-151.0,0.0001693,2]
[338601886,1726761049741,-151.0,0.0001693,2]
[338601887,1726761049751,-151.0,0.0001693,2]
[338601888,1726761049760,-151.0,0.0001693,2]
[338601889,1726761049770,-256.474057,0.0001693,2]
[338601890,1726761049779,-1213.704167,0.0001693,2]
[338601891,1726761049789,-1213.704175,0.0001693,2]
[338601892,1726761049800,-151.0,0.00016931,2]
[338601893,1726761049810,-151.0,0.00016931,2]
[338601894,1726761049820,-151.0,0.00016931,2]
[338601895,1726761049831,-151.0,0.00016931,2]
[338601896,1726761049840,-151.0,0.00016931,2]
[338601897,1726761049850,-151.0,0.00016931,2]
[338601898,1726761049860,-151.0,0.00016931,2]
[338601899,1726761049870,-151.0,0.00016931,2]
[338601900,1726761049880,-265.719872,0.00016931,2]
[338601901,1726761049891,-177.168479,0.00016931,2]
[338601902,1726761049901,-177.168479,0.00016931,2]
[338601903,1726761049911,-2006.918293,0.00016931,2]
[338601904,1726761049920,-2006.918293,0.00016931,2]
[338601905,1726761049930,-525.351753,0.00016931,2]
[338601906,1726761050078,-525.351753,0.00016931,2]
[338601907,1726761050094,-151.0,0.00016931,2]
[338601908,1726761050103,-151.0,0.00016931,2]
[338601909,1726761050114,-151.0,0.00016931,2]
[338601910,1726761050123,-151.0,0.00016931,2]
[338601911,1726761050134,-151.0,0.00016931,2]
[338601912,1726761050145,-151.0,0.00016931,2]
[338601913,1726761050158,-151.0,0.00016931,2]
[338601914,1726761050168,-151.0,0.00016931,2]
[338601915,1726761050178,-1390.994884,0.00016931,2]
[338601916,1726761050187,-1390.994884,0.00016931,2]
[338601917,1726761050196,-151.0,0.0001694,2]
[338601918,1726761050205,-151.0,0.0001694,2]
[338601919,1726761050215,-151.0,0.0001694,2]
[338601920,1726761050226,-151.0,0.0001694,2]
[338601921,1726761050239,-151.0,0.0001694,2]
[338601922,1726761050251,-151.0,0.0001694,2]
[338601923,1726761050262,-151.0,0.0001694,2]
[338601924,1726761050271,-151.0,0.0001694,2]
[338601925,1726761050281,-151.0,0.0001694,2]
[338601926,1726761050290,-300.12116,0.0001694,2]
[338601927,1726761050299,-151.0,0.0001694,2]
[338601928,1726761050309,-299.477044,0.0001694,2]
[338601929,1726761050319,-400.361776,0.0001694,2]
[338601930,1726761050328,-400.361776,0.0001694,2]
[338601931,1726761050338,-400.361776,0.0001694,2]
[338601932,1726761050347,-400.361776,0.0001694,2]
[338601933,1726761050356,-151.0,0.0001694,2]
[338601934,1726761050365,-229.655805,0.0001694,2]
[338601935,1726761050375,-151.0,0.0001694,2]
[338601936,1726761050384,-151.0,0.0001694,2]
[338601937,1726761050393,-151.0,0.0001694,2]
[338601938,1726761050403,-151.0,0.0001694,2]
[338601939,1726761050412,-177.168479,0.0001694,2]
[338601940,1726761050422,-177.168479,0.0001694,2]
[338601941,1726761050431,-177.168479,0.0001694,2]
[338601942,1726761050440,-177.168479,0.0001694,2]
[338601943,1726761050450,-177.168479,0.0001694,2]
[338601944,1726761050459,-177.168479,0.0001694,2]
[338601945,1726761050468,-2006.918293,0.0001694,2]
[338601946,1726761050477,-2006.918293,0.0001694,2]
[338601947,1726761050487,-2006.918293,0.0001694,2]
[338601948,1726761050496,-2006.918293,0.0001694,2]
[338601949,1726761050505,-2006.918293,0.0001694,2]
[338601950,1726761050514,-2006.918293,0.0001694,2]
[338601951,1726761050524,-525.351753,0.0001694,2]
[338601952,1726761050533,-525.351753,0.0001694,2]
[338601953,1726761050542,-525.351753,0.0001694,2]
[338601954,1726761050551,-525.351753,0.0001694,2]
[338601955,1726761050560,-525.351753,0.0001694,2]
[338601956,1726761050569,-525.351753,0.0001694,2]
[338601957,1726761050580,-151.0,0.0001694,2]
[338601958,1726761050590,-151.0,0.0001694,2]
[338601959,1726761050598,-151.0,0.0001694,2]
[338601960,1726761050608,-151.0,0.0001694,2]
[338601961,1726761050617,-151.0,0.0001694,2]
[338601962,1726761050626,-151.0,0.0001694,2]
[338601963,1726761050635,-151.0,0.0001694,2]
[338601964,1726761050645,-200.35917,0.0001694,2]
[338601965,1726761050654,-1390.994884,0.0001694,2]
[338601966,1726761050663,-1390.994884,0.0001694,2]
[338601967,1726761050672,-1390.994884,0.0001694,2]
[338601968,1726761050682,-1390.994888,0.0001694,2]
[338601969,1726761050691,-151.0,0.00016941,2]
[338601970,1726761050700,-151.0,0.00016941,2]
[338601971,1726761050709,-151.0,0.00016941,2]
[338601972,1726761050718,-151.0,0.00016941,2]
[338601973,1726761050727,-269.725879,0.00016941,2]
[338601974,1726761050736,-151.0,0.00016941,2]
[338601975,1726761050745,-151.0,0.00016941,2]
[338601976,1726761050754,-151.0,0.00016941,2]
[338601977,1726761050763,-151.0,0.00016941,2]
[338601978,1726761050772,-400.361776,0.00016941,2]
[338601979,1726761050781,-400.361776,0.00016941,2]
[338601980,1726761050791,-400.361776,0.00016941,2]
[338601981,1726761050799,-400.361776,0.00016941,2]
[338601982,1726761050808,-400.361776,0.00016941,2]
[338601983,1726761050818,-400.361776,0.00016941,2]
[338601984,1726761050827,-189.979848,0.00016941,2]
[338601985,1726761050837,-177.168479,0.00016941,2]
[338601986,1726761050847,-177.168479,0.00016941,2]
[338601987,1726761050856,-177.168479,0.00016941,2]
[338601988,1726761050866,-177.168479,0.00016941,2]
[338601989,1726761050884,-2006.918293,0.00016941,2]
[338601990,1726761050893,-2006.918293,0.00016941,2]
[338601991,1726761050902,-2006.918293,0.00016941,2]
[338601992,1726761050911,-2006.918298,0.00016941,2]
[338601993,1726761050920,-525.351753,0.00016941,2]
[338601994,1726761050933,-525.351753,0.00016941,2]
[338601995,1726761050943,-525.351753,0.00016941,2]
[338601996,1726761050952,-525.351758,0.00016941,2]
[338601997,1726761050963,-151.0,0.0001695,2]
[338601998,1726761050974,-151.0,0.0001695,2]
[338601999,1726761050983,-151.0,0.0001695,2]
[338602000,1726761050993,-151.0,0.0001695,2]
[338602001,1726761051003,-151.0,0.0001695,2]
[338602002,1726761051012,-151.0,0.0001695,2]
[338602003,1726761051022,-151.0,0.0001695,2]
[338602004,1726761051033,-151.0,0.0001695,2]
[338602005,1726761051043,-151.0,0.0001695,2]
[338602006,1726761051052,-151.0,0.0001695,2]
[338602007,1726761051061,-151.0,0.0001695,2]
[338602008,1726761051083,-151.0,0.0001695,2]
[338602009,1726761051094,-151.0,0.0001695,2]
[338602010,1726761051104,-151.0,0.0001695,2]
[338602011,1726761051114,-151.0,0.0001695,2]
[338602012,1726761051123,-151.0,0.0001695,2]
[338602013,1726761051132,-151.0,0.0001695,2]
[338602014,1726761051144,-151.0,0.0001695,2]
[338602015,1726761051155,-486.587967,0.0001695,2]
[338602016,1726761051164,-486.587967,0.0001695,2]
[338602017,1726761051174,-486.587967,0.0001695,2]
[338602018,1726761051183,-486.587967,0.0001695,2]
[338602019,1726761051193,-486.587967,0.0001695,2]
[338602020,1726761051203,-486.587967,0.0001695,2]
[338602021,1726761051213,-159.25991,0.0001695,2]
[338602022,1726761051222,-400.361776,0.0001695,2]
[338602023,1726761051232,-400.361776,0.0001695,2]
[338602024,1726761051241,-400.361776,0.0001695,2]
[338602025,1726761051251,-400.361776,0.0001695,2]
[338602026,1726761051260,-400.361776,0.0001695,2]
[338602027,1726761051270,-400.361776,0.0001695,2]
[338602028,1726761051279,-151.0,0.0001696,2]
[338602029,1726761051289,-151.491314,0.0001696,2]
[338602030,1726761051299,-151.0,0.0001696,2]
[338602031,1726761051308,-151.0,0.0001696,2]
[338602032,1726761051318,-151.0,0.0001696,2]
[338602033,1726761051327,-486.587967,0.0001696,2]
[338602034,1726761051337,-486.587967,0.0001696,2]
[338602035,1726761051346,-159.25991,0.0001696,2]
[338602036,1726761051355,-159.25991,0.0001696,2]
[338602037,1726761051365,-159.25991,0.0001696,2]
[338602038,1726761051374,-400.361776,0.0001696,2]
[338602039,1726761051400,-400.361776,0.0001696,2]
[338602040,1726761051409,-400.361776,0.0001696,2]
[338602041,1726761051418,-400.361785,0.0001696,2]
[338602042,1726761051428,-151.0,0.00016961,2]
[338602043,1726761051437,-151.0,0.00016961,2]
[338602044,1726761051446,-151.0,0.00016961,2]
[338602045,1726761051456,-151.0,0.00016961,2]
[338602046,1726761051465,-151.0,0.00016961,2]
[338602047,1726761051474,-151.0,0.00016961,2]
[338602048,1726761051484,-151.0,0.00016961,2]
[338602049,1726761051493,-157.258231,0.00016961,2]
[338602050,1726761051503,-151.0,0.00016961,2]
[338602051,1726761051513,-155.135275,0.00016961,2]
[338602052,1726761051523,-486.587967,0.00016961,2]
[338602053,1726761051532,-486.587967,0.00016961,2]
[338602054,1726761051541,-486.587967,0.00016961,2]
[338602055,1726761051551,-486.587967,0.00016961,2]
[338602056,1726761051561,-159.25991,0.00016961,2]
[338602057,1726761051570,-159.259909,0.00016961,2]
[338602058,1726761051580,-155.461562,0.0001697,2]
[338602059,1726761051590,-151.0,0.0001697,2]
[338602060,1726761051600,-151.0,0.0001697,2]
[338602061,1726761051610,-486.587967,0.0001697,2]
[338602062,1726761051620,-486.587967,0.0001697,2]
[338602063,1726761051630,-486.587967,0.0001697,2]
[338602064,1726761051640,-486.587967,0.0001697,2]
[338602065,1726761051649,-486.587967,0.0001697,2]
[338602066,1726761051659,-486.587967,0.0001697,2]
[338602067,1726761051668,-486.587967,0.0001697,2]
[338602068,1726761051678,-486.587964,0.0001697,2]
[338602069,1726761051688,-598.64684965,0.00016973,2]
[338602070,1726761051698,-500.0,0.00016973,2]
[338602071,1726761051712,-500.0,0.00016973,2]
[338602072,1726761051722,-500.0,0.00016973,2]
[338602073,1726761051732,-160.90163875,0.00016973,2]
[338602074,1726761051741,-500.0,0.00016973,2]
[338602075,1726761051751,-500.0,0.00016973,2]
[338602076,1726761051761,-500.0,0.00016973,2]
[338602077,1726761051771,-500.0,0.00016973,2]
[338602078,1726761051780,-500.0,0.00016973,2]
[338602079,1726761051790,-500.0,0.00016973,2]
[338602080,1726761051800,-376.33625533,0.00016973,2]
[338602081,1726761051810,-205.62097392,0.00016973,2]
[338602082,1726761051820,-500.0,0.00016973,2]
[338602083,1726761051830,-500.0,0.00016973,2]
[338602084,1726761051839,-500.0,0.00016973,2]
[338602085,1726761051850,-500.0,0.00016973,2]
[338602086,1726761051862,-500.0,0.00016973,2]
[338602087,1726761051872,-500.0,0.00016973,2]
[338602088,1726761051881,-500.0,0.00016973,2]
[338602089,1726761051905,-151.50409289,0.00016973,2]
[338602090,1726761051915,-188.405846,0.00016973,2]
[338602091,1726761051925,-500.0,0.00016973,2]
[338602092,1726761051935,-500.0,0.00016973,2]
[338602093,1726761051945,-500.0,0.00016973,2]
[338602094,1726761051954,-500.0,0.00016973,2]
[338602095,1726761051964,-350.93703334,0.00016973,2]
[338602096,1726761051974,-500.0,0.00016973,2]
[338602097,1726761051984,-500.36818293,0.00016973,2]
[338602098,1726761051994,-500.0,0.00016973,2]
[338602099,1726761052003,-409.96455933,0.00016999,2]
[338602100,1726761052013,-12066.7732978,0.00016999,2]
[338602101,1726761052023,-67610.47212442,0.00017,2]
[338602102,1726761052032,-1500.0,0.00017,2]
[338602103,1726761052041,-1000.0,0.00017,7]
[338602104,1726761052051,-1500.0,0.00017,2]
[338602105,1726761052060,-1500.0,0.00017,2]
[338602106,1726761052073,-1500.0,0.00017,2]
[338602107,1726761052083,-1500.0,0.00017,2]
[338602108,1726761052092,-1500.0,0.00017,2]
[338602109,1726761052102,-1518.84,0.00017,2]
[338602110,1726761052113,-1500.0,0.00017,2]
[338602111,1726761052122,-1500.0,0.00017,2]
[338602112,1726761052132,-1500.0,0.00017,2]
[338602113,1726761052144,-1500.0,0.00017,2]
[338602114,1726761052155,-150.112233,0.00017,2]
[338602115,1726761052164,-150.112233,0.00017,2]
[338602116,1726761052174,-150.112233,0.00017,2]
[338602117,1726761052184,-150.112233,0.00017,2]
[338602118,1726761052193,-150.112233,0.00017,2]
[338602119,1726761052203,-150.112233,0.00017,2]
[338602120,1726761052212,-524.0,0.0001709,2]
[338602121,1726761052222,-150.0,0.0001709,2]
[338602122,1726761052232,-1216.0,0.0001709,2]
[338602123,1726761052242,-48045.318,0.0001709,2]
[338602124,1726761052252,-169.527,0.0001709,2]
[338602125,1726761052262,-150.087,0.0001709,2]
[338602126,1726761052271,-152.725,0.0001709,2]
[338602127,1726761052281,-1163.3645288,0.000171,2]
[338602128,1726761052290,-1000.0,0.000175,2]
[338602129,1726761052300,-1163.3645288,0.000176,2]
[338602130,1726761052309,-435.6,0.00017625,2]
[338602131,1726761052318,-500.0,0.00017808,2]
[338602132,1726761052327,-435.6,0.00017862,2]
[338602133,1726761052337,-150.0,0.000179,2]
[338602134,1726761052351,-65103.15466886,0.0001797,2]
[338602135,1726761052361,-2502.77900404,0.00018,2]
[338602136,1726761052370,-137121.44389686,0.00018,2]
[338602137,1726761052380,-1000.0,0.00018,2]
[338602138,1726761052402,-1000.0,0.00018,2]
[338602139,1726761052412,-7263.64716659,0.00018,10]
[338602140,1726761052422,-3000.0,0.00018,2]
[338602141,1726761052432,-3000.0,0.0001801,2]
[338602142,1726761052442,-500.0,0.00018018,2]
[338602143,1726761052453,-500.0,0.00018018,2]
[338602144,1726761052463,-300.24452277,0.00018018,2]
[338602145,1726761052473,-3000.0,0.0001802,2]
[338602146,1726761052482,-3000.0,0.0001803,2]
[338602147,1726761052492,-3000.0,0.0001804,2]
[338602148,1726761052502,-3000.0,0.0001805,2]
[338602149,1726761052512,-3000.0,0.0001806,2]
[338602150,1726761052522,-3000.0,0.0001807,2]
[338602151,1726761052532,-3000.0,0.0001808,2]
[338602152,1726761052542,-3000.0,0.0001809,2]
[338602153,1726761052551,-3000.0,0.000181,2]
[338602154,1726761052561,-435.6,0.000181,2]
[338602155,1726761052572,-1163.3645288,0.000181,2]
[338602156,1726761052582,-3000.0,0.0001811,2]
[338602157,1726761052592,-587.0,0.00018116,2]
[338602158,1726761052601,-3000.0,0.0001812,2]
[338602159,1726761052611,-3000.0,0.0001813,2]
[338602160,1726761052621,-3000.0,0.0001814,2]
[338602161,1726761052631,-3000.0,0.0001815,2]
[338602162,1726761052653,-3000.0,0.0001816,2]
[338602163,1726761052662,-3000.0,0.0001817,2]
[338602164,1726761052672,-3000.0,0.0001818,2]
[338602165,1726761052682,-3000.0,0.0001819,2]
[338602166,1726761052692,-3000.0,0.000182,2]
[338602167,1726761052701,-3000.0,0.0001821,2]
[338602168,1726761052711,-3000.0,0.0001822,2]
[338602169,1726761052721,-3000.0,0.0001823,2]
[338602170,1726761052730,-3000.0,0.0001824,2]
[338602171,1726761052741,-3000.0,0.0001825,2]
[338602172,1726761052751,-3000.0,0.0001826,2]
[338602173,1726761052760,-3000.0,0.0001827,2]
[338602174,1726761052770,-3000.0,0.0001828,2]
[338602175,1726761052780,-3000.0,0.0001829,2]
[338602176,1726761052790,-3000.0,0.000183,2]
[338602177,1726761052799,-3000.0,0.0001831,2]
[338602178,1726761052809,-3000.0,0.0001832,2]
[338602179,1726761052819,-3000.0,0.0001833,2]
[338602180,1726761052829,-435.6,0.00018337,2]
[338602181,1726761052839,-3000.0,0.0001834,2]
[338602182,1726761052849,-501.05784197,0.00018342,2]
[338602183,1726761052859,-1000.0,0.00018342,2]
[338602184,1726761052868,-1000.0,0.00018342,2]
[338602185,1726761052878,-1000.0,0.00018342,2]
[338602186,1726761052899,-500.49624392,0.00018342,2]
[338602187,1726761052910,-1000.0,0.00018342,2]
[338602188,1726761052919,-1000.0,0.00018342,2]
[338602189,1726761052929,-1000.0,0.00018342,2]
[338602190,1726761052938,-1000.0,0.00018342,2]
[338602191,1726761052948,-1000.0,0.00018342,2]
[338602192,1726761052958,-500.47227061,0.00018342,2]
[338602193,1726761052967,-500.0,0.00018342,2]
[338602194,1726761052978,-500.68393457,0.00018342,2]
[338602195,1726761052988,-500.0,0.00018342,2]
[338602196,1726761052997,-513.72926842,0.00018342,2]
[338602197,1726761053007,-694.0277688,0.00018342,2]
[338602198,1726761053017,-1000.0,0.00018342,2]
[338602199,1726761053027,-1000.0,0.00018342,2]
[338602200,1726761053037,-1000.0,0.00018342,2]
[338602201,1726761053048,-535.76393673,0.00018342,2]
[338602202,1726761053059,-500.85455208,0.00018342,2]
[338602203,1726761053082,-503.76687854,0.00018342,2]
[338602204,1726761053093,-1500.0,0.00018346,2]
[338602205,1726761053103,-1500.0,0.00018346,2]
[338602206,1726761053114,-1390.98073675,0.00018346,2]
[338602207,1726761053124,-1500.0,0.00018346,2]
[338602208,1726761053135,-3000.0,0.0001835,2]
[338602209,1726761053155,-3000.0,0.0001836,2]
[338602210,1726761053165,-3000.0,0.0001837,2]
[338602211,1726761053175,-3000.0,0.0001838,2]
[338602212,1726761053184,-600.0,0.00018382,2]
[338602213,1726761053194,-3000.0,0.0001839,2]
[338602214,1726761053204,-3000.0,0.000184,2]
[338602215,1726761053214,-3000.0,0.0001841,2]
[338602216,1726761053223,-3000.0,0.0001842,2]
[338602217,1726761053233,-600.0,0.0001843,2]
[338602218,1726761053243,-600.0,0.0001843,2]
[338602219,1726761053253,-3000.0,0.0001843,2]
[338602220,1726761053264,-3000.0,0.0001844,2]
[338602221,1726761053274,-3000.0,0.0001845,2]
[338602222,1726761053284,-3000.0,0.0001846,2]
[338602223,1726761053294,-3000.0,0.0001847,2]
[338602224,1726761053303,-208.7923626,0.00018472,2]
[338602225,1726761053313,-208.7923626,0.00018472,2]
[338602226,1726761053323,-208.7923626,0.00018472,2]
[338602227,1726761053333,-208.7923626,0.00018472,2]
[338602228,1726761053343,-600.0,0.00018475,2]
[338602229,1726761053352,-887.13719627,0.0001848,2]
[338602230,1726761053362,-3000.0,0.0001848,2]
[338602231,1726761053372,-3000.0,0.0001849,2]
[338602232,1726761053382,-2000.0,0.000185,2]
[338602233,1726761053392,-2000.0,0.000185,2]
[338602234,1726761053402,-3000.0,0.000185,2]
[338602235,1726761053412,-3000.0,0.0001851,2]
[338602236,1726761053421,-3000.0,0.0001852,2]
[338602237,1726761053431,-3000.0,0.0001853,2]
[338602238,1726761053441,-3000.0,0.0001854,2]
[338602239,1726761053450,-3000.0,0.0001855,2]
[338602240,1726761053460,-3419.043446,0.0001856,2]
[338602241,1726761053469,-435.6,0.00018575,2]
[338602242,1726761053479,-1163.3645288,0.000186,2]
[338602243,1726761053489,-600.0,0.00018603,2]
[338602244,1726761053498,-600.0,0.00018603,2]
[338602245,1726761053508,-600.0,0.00018603,2]
[338602246,1726761053517,-600.0,0.00018603,2]
[338602247,1726761053527,-600.0,0.00018603,2]
[338602248,1726761053536,-600.0,0.00018603,2]
[338602249,1726761053548,-600.0,0.00018603,2]
[338602250,1726761053560,-600.0,0.00018603,2]
[338602251,1726761053571,-600.0,0.00018624,2]
[338602252,1726761053580,-600.0,0.00018624,2]
[338602253,1726761053590,-600.0,0.00018624,2]
[338602254,1726761053599,-184.0,0.000187,2]
[338602255,1726761053610,-537.037308,0.00018753,2]
[338602256,1726761053621,-1475.752789,0.00018753,2]
[338602257,1726761053632,-171.849663,0.00018753,2]
[338602258,1726761053656,-424.900234,0.00018753,2]
[338602259,1726761053666,-163.377932,0.00018753,2]
[338602260,1726761053676,-703.76765,0.00018753,2]
[338602261,1726761053686,-171.849663,0.00018753,2]
[338602262,1726761053695,-368.154653,0.00018753,2]
[338602263,1726761053704,-168.29875,0.00018753,2]
[338602264,1726761053713,-468.229855,0.00018753,2]
[338602265,1726761053723,-726.65935,0.00018753,2]
[338602266,1726761053736,-183.053998,0.00018753,2]
[338602267,1726761053745,-172.055738,0.00018753,2]
[338602268,1726761053755,-308.186785,0.00018753,2]
[338602269,1726761053764,-236.936541,0.00018753,2]
[338602270,1726761053774,-203.088466,0.00018753,2]
[338602271,1726761053783,-177.18719,0.00018753,2]
[338602272,1726761053793,-191.805771,0.00018753,2]
[338602273,1726761053803,-240.978014,0.00018753,2]
[338602274,1726761053812,-202.0,0.0001877,2]
[338602275,1726761053822,-1057.2119926,0.000188,2]
[338602276,1726761053832,-435.6,0.00018812,2]